bitfinex/quotes_BTCUSD_20250802
["timestamp","ask_amount","ask_price","bid_price","bid_amount"]
[1754123052342,5.00958758,114140.0,114130.0,0.45658634]
[1754123053448,4.99587355,114140.0,114130.0,0.45658634]
[1754123053702,4.68363699,114140.0,114130.0,0.45658634]
[1754123053929,0.37531699,114140.0,114130.0,0.45658634]
[1754123054190,0.03531699,114140.0,114130.0,0.45658634]
[1754123054384,0.37531699,114140.0,114130.0,0.45658634]
[1754123054637,0.34,114140.0,114130.0,0.45658634]
[1754123055424,0.34,114140.0,114130.0,0.17957]
[1754123055639,0.34,114140.0,114130.0,0.45358634]
[1754123056092,0.34,114140.0,114130.0,0.45258634]
[1754123056511,0.34,114140.0,114130.0,0.45358634]
[1754123056924,0.34,114140.0,114130.0,0.45658634]
[1754123057367,0.37586814,114140.0,114130.0,0.45658634]
[1754123059596,0.38958115,114140.0,114130.0,0.45658634]
[1754123063435,0.37586814,114140.0,114130.0,0.45658634]
[1754123065221,0.03586814,114140.0,114130.0,0.45658634]
[1754123065419,0.5085,114150.0,114130.0,0.45658634]
[1754123065650,4.64832,114140.0,114130.0,0.14204]
[1754123066239,4.64832,114140.0,114130.0,0.17374]
[1754123066858,4.64832,114140.0,114130.0,0.45075634]
[1754123067079,4.64832,114140.0,114130.0,0.45275634]
[1754123067282,0.34,114140.0,114130.0,0.45275634]
[1754123067481,0.35371294,114140.0,114130.0,0.45275634]
[1754123068695,0.39023375,114140.0,114130.0,0.45075634]
[1754123069222,0.39023375,114140.0,114130.0,0.17674]
[1754123069422,0.39023375,114140.0,114130.0,0.45375634]
[1754123073372,0.37652081,114140.0,114130.0,0.45375634]
[1754123076449,0.37652081,114140.0,114130.0,0.17674]
[1754123076816,0.37652081,114140.0,114130.0,0.45375634]
[1754123077481,0.39023387,114140.0,114130.0,0.45375634]
[1754123077909,0.39023387,114140.0,114130.0,0.73077268]
[1754123077910,0.05023387,114140.0,114130.0,0.73077268]
[1754123084064,0.03652081,114140.0,114130.0,0.73077268]
[1754123084286,0.03652081,114140.0,114130.0,0.81497257]
[1754123084496,4.64832,114150.0,114130.0,0.81497257]
[1754123084770,0.34,114150.0,114140.0,0.58873268]
[1754123085017,0.34,114150.0,114140.0,0.59077268]
[1754123086683,0.34,114150.0,114140.0,0.59277268]
[1754123087311,0.35371113,114150.0,114140.0,0.59277268]
[1754123087528,0.35371113,114150.0,114140.0,0.59377268]
[1754123088563,0.35371113,114150.0,114140.0,0.72805268]
[1754123089223,0.38933442,114150.0,114140.0,0.72805268]
[1754123095550,0.37562329,114150.0,114140.0,0.72805268]
[1754123095761,0.37562329,114150.0,114140.0,0.17402]
[1754123095968,0.37562329,114150.0,114140.0,0.72805268]
[1754123097133,0.37562329,114150.0,114140.0,0.59377268]
[1754123097387,0.37562329,114150.0,114140.0,0.72797268]
[1754123098345,0.3893345,114150.0,114140.0,0.17394]
[1754123098576,0.3693345,114150.0,114140.0,0.72797268]
[1754123100179,5.29467084,114150.0,114140.0,0.03459]
[1754123100419,5.29467084,114150.0,114140.0,0.13716]
[1754123100862,5.29554084,114150.0,114140.0,0.003]
[1754123101080,5.29554084,114150.0,114140.0,0.13724]
[1754123101523,5.32188584,114150.0,114140.0,0.13724]
[1754123101767,5.0448695,114150.0,114140.0,0.13724]
[1754123103304,5.03115829,114150.0,114140.0,0.13724]
[1754123103519,0.38283829,114150.0,114140.0,0.13724]
[1754123103746,0.38196829,114150.0,114140.0,0.13724]
[1754123104032,5.03028829,114150.0,114140.0,0.13724]
[1754123105598,5.03115829,114150.0,114140.0,0.13724]
[1754123106673,5.30817463,114150.0,114140.0,0.13724]
[1754123107271,5.30730463,114150.0,114140.0,0.13724]
[1754123107481,5.04400085,114150.0,114140.0,0.13724]
[1754123107913,5.04400085,114150.0,114140.0,0.41425634]
[1754123108132,5.04400085,114150.0,114140.0,0.44844634]
[1754123108601,5.04400085,114150.0,114140.0,0.17143]
[1754123109742,5.04400085,114150.0,114140.0,0.44844634]
[1754123111247,5.04400085,114150.0,114140.0,0.17143]
[1754123111506,5.04400085,114150.0,114140.0,0.44844634]
[1754123112399,5.04400085,114150.0,114140.0,0.17143]
[1754123112848,5.32101719,114150.0,114140.0,0.13724]
[1754123113302,5.04400085,114150.0,114140.0,0.13724]
[1754123114182,5.04400085,114150.0,114140.0,0.44844634]
[1754123115054,5.04400085,114150.0,114140.0,0.45151634]
[1754123115517,5.01765585,114150.0,114140.0,0.17143]
[1754123115735,5.29467219,114150.0,114140.0,0.13724]
[1754123115965,5.01765585,114150.0,114140.0,0.13724]
[1754123116384,5.00394329,114150.0,114140.0,0.13724]
[1754123116612,5.28095963,114150.0,114140.0,0.13724]
[1754123118363,5.28095963,114150.0,114140.0,0.13624]
[1754123118579,5.28095963,114150.0,114140.0,0.13424]
[1754123118986,5.28095963,114150.0,114140.0,0.006]
[1754123119230,5.74719118,114150.0,114140.0,0.14064]
[1754123119421,5.77353818,114150.0,114140.0,0.13864]
[1754123119894,5.49565184,114150.0,114140.0,0.14264]
[1754123120117,5.77353818,114150.0,114140.0,0.14264]
[1754123120349,6.42576257,114150.0,114140.0,0.008]
[1754123120568,6.42576257,114150.0,114140.0,0.1426]
[1754123121309,6.42576257,114150.0,114140.0,0.1386]
[1754123121734,6.42676257,114150.0,114140.0,0.1346]
[1754123122166,6.42576257,114150.0,114140.0,0.1366]
[1754123122378,6.42676257,114150.0,114140.0,0.1366]
[1754123122595,6.42676257,114150.0,114140.0,0.1346]
[1754123123048,6.42680707,114150.0,114140.0,0.1346]
[1754123123479,6.50579432,114150.0,114140.0,0.1346]
[1754123123670,6.49729432,114150.0,114140.0,0.1346]
[1754123126469,6.51100928,114150.0,114140.0,0.1346]
[1754123127597,6.56366928,114150.0,114140.0,0.1346]
[1754123128659,6.16796939,114150.0,114140.0,0.1346]
[1754123128874,1.51964939,114150.0,114140.0,0.1346]
[1754123129079,6.16796939,114150.0,114140.0,0.1346]
[1754123130613,6.50796939,114150.0,114140.0,0.1346]
[1754123132105,5.23365242,114140.0,114130.0,0.1346]
[1754123132331,5.5948909,114140.0,114130.0,0.1346]
[1754123132725,5.6212419,114140.0,114130.0,0.1346]
[1754123133277,5.6212419,114140.0,114130.0,0.1356]
[1754123133478,5.34420331,114140.0,114130.0,0.1356]
[1754123133679,5.6212419,114140.0,114130.0,0.1356]
[1754123133888,5.6212419,114140.0,114130.0,0.16784]
[1754123134092,5.6212419,114140.0,114130.0,0.16884]
[1754123138074,5.63495746,114140.0,114130.0,0.16884]
[1754123138559,5.64345746,114140.0,114130.0,0.00204]
[1754123138793,5.37491887,114140.0,114130.0,0.00204]
[1754123139021,5.64345746,114140.0,114130.0,0.00204]
[1754123139450,5.36641887,114140.0,114130.0,0.00204]
[1754123139673,5.64345746,114140.0,114130.0,0.0394]
[1754123140783,5.36641887,114140.0,114130.0,0.0394]
[1754123141011,5.54119547,114140.0,114130.0,0.0394]
[1754123141241,5.71641887,114140.0,114130.0,0.0394]
[1754123141470,5.66375887,114140.0,114130.0,0.0394]
[1754123143251,5.94079746,114140.0,114130.0,0.0394]
[1754123143928,5.7518585,114140.0,114130.0,0.0394]
[1754123144177,5.9355819,114140.0,114130.0,0.0394]
[1754123145042,5.9270819,114140.0,114130.0,0.0394]
[1754123147118,5.9407968,114140.0,114130.0,0.0394]
[1754123147559,1.2924768,114140.0,114130.0,0.0394]
[1754123147740,5.9407968,114140.0,114130.0,0.0394]
[1754123148887,5.9322968,114140.0,114130.0,0.0394]
[1754123149105,5.65525821,114140.0,114130.0,0.0394]
[1754123149329,5.9322968,114140.0,114130.0,0.0394]
[1754123151023,5.57484778,114140.0,114130.0,0.0394]
[1754123151433,5.62750778,114140.0,114130.0,0.0394]
[1754123151643,5.57484778,114140.0,114130.0,0.0394]
[1754123153082,5.9322968,114140.0,114130.0,0.0394]
[1754123153279,5.9322968,114140.0,114130.0,0.0374]
[1754123153483,5.9322968,114140.0,114130.0,0.0384]
[1754123153682,5.9322968,114140.0,114130.0,0.0404]
[1754123154189,5.9322968,114140.0,114130.0,0.0394]
[1754123154402,5.9407968,114140.0,114130.0,0.0394]
[1754123154607,5.9407968,114140.0,114130.0,0.0414]
[1754123156246,5.9407968,114140.0,114130.0,0.17652]
[1754123156998,5.9270819,114140.0,114130.0,0.17652]
[1754123158530,5.65004331,114140.0,114130.0,0.17652]
[1754123158749,5.9270819,114140.0,114130.0,0.17652]
[1754123159391,1.2787619,114140.0,114130.0,0.17652]
[1754123159606,5.9270819,114140.0,114130.0,0.17652]
[1754123160064,5.94079682,114140.0,114130.0,0.17652]
[1754123162959,5.66375823,114140.0,114130.0,0.17652]
[1754123163175,5.94079682,114140.0,114130.0,0.17652]
[1754123165337,5.76557342,114140.0,114130.0,0.17652]
[1754123166229,5.94079682,114140.0,114130.0,0.17652]
[1754123166436,5.76557342,114140.0,114130.0,0.17652]
[1754123167990,5.9270819,114140.0,114130.0,0.17652]
[1754123170453,5.65004331,114140.0,114130.0,0.17652]
[1754123170678,5.9270819,114140.0,114130.0,0.17652]
[1754123170911,5.94079682,114140.0,114130.0,0.17652]
[1754123171358,5.66375823,114140.0,114130.0,0.17652]
[1754123171567,5.99345682,114140.0,114130.0,0.17652]
[1754123171791,5.94079682,114140.0,114130.0,0.17652]
[1754123171999,5.66375823,114140.0,114130.0,0.17652]
[1754123172213,5.94079682,114140.0,114130.0,0.17652]
[1754123172849,1.29247682,114140.0,114130.0,0.17652]
[1754123173066,5.94079682,114140.0,114130.0,0.17652]
[1754123174125,5.76444582,114140.0,114130.0,0.17652]
[1754123174992,6.06779035,114140.0,114130.0,0.17652]
[1754123178468,5.51375723,114140.0,114130.0,0.17652]
[1754123178726,6.06779035,114140.0,114130.0,0.17652]
[1754123184361,1.41947035,114140.0,114130.0,0.17652]
[1754123184796,6.06779035,114140.0,114130.0,0.17652]
[1754123185414,6.06779035,114140.0,114130.0,0.17146]
[1754123185652,6.06779035,114140.0,114130.0,0.17446]
[1754123186938,6.05407543,114140.0,114130.0,0.17446]
[1754123189808,6.06779034,114140.0,114130.0,0.17446]
[1754123191991,6.12045034,114140.0,114130.0,0.17446]
[1754123192868,6.12045034,114140.0,114130.0,0.1743]
[1754123194601,5.56641722,114140.0,114130.0,0.1743]
[1754123195034,6.12045034,114140.0,114130.0,0.1743]
[1754123203626,6.12045034,114140.0,114130.0,0.17442]
[1754123206302,5.56641722,114140.0,114130.0,0.17442]
[1754123206559,6.10673543,114140.0,114130.0,0.17442]
[1754123208959,5.55270231,114140.0,114130.0,0.17442]
[1754123209177,6.10673543,114140.0,114130.0,0.17442]
[1754123209686,6.25673543,114140.0,114130.0,0.03934]
[1754123209906,5.21623411,114120.0,114110.0,0.00304]
[1754123210161,5.85446712,114120.0,114110.0,0.13808]
[1754123210415,5.88129811,114120.0,114110.0,0.17038]
[1754123210630,5.89501475,114120.0,114110.0,0.17038]
[1754123211053,5.61799819,114120.0,114110.0,0.17038]
[1754123211287,5.89501475,114120.0,114110.0,0.17042777]
[1754123211508,5.84235475,114120.0,114110.0,0.17042777]
[1754123211730,5.84235475,114120.0,114110.0,0.17342777]
[1754123212842,5.28832163,114120.0,114110.0,0.17342777]
[1754123213048,5.84235475,114120.0,114110.0,0.17342777]
[1754123213263,5.82863811,114120.0,114110.0,0.17342777]
[1754123213487,1.18031811,114120.0,114110.0,0.17342777]
[1754123213980,5.82863811,114120.0,114110.0,0.17642777]
[1754123214195,5.82863811,114120.0,114110.0,0.14112777]
[1754123214845,5.55162155,114120.0,114110.0,0.17278777]
[1754123215026,5.55162155,114120.0,114110.0,0.17603777]
[1754123215653,5.82863811,114120.0,114110.0,0.17603777]
[1754123216300,5.84235483,114120.0,114110.0,0.17603777]
[1754123216943,5.86870883,114120.0,114110.0,0.17603777]
[1754123220601,5.31467571,114120.0,114110.0,0.17603777]
[1754123221063,5.59169227,114120.0,114110.0,0.17811777]
[1754123221330,5.1394216,114120.0,114110.0,0.17811777]
[1754123221554,5.59169227,114120.0,114110.0,0.17811777]
[1754123222006,5.31467571,114120.0,114110.0,0.17811777]
[1754123222247,5.59169227,114120.0,114110.0,0.17811777]
[1754123223149,5.86870883,114120.0,114110.0,0.17811777]
[1754123223367,5.86870883,114120.0,114110.0,0.17603777]
[1754123229749,5.85499211,114120.0,114110.0,0.17603777]
[1754123230193,5.30095899,114120.0,114110.0,0.17603777]
[1754123230661,5.85499211,114120.0,114110.0,0.17603777]
[1754123232723,5.86870891,114120.0,114110.0,0.17603777]
[1754123233567,5.31467579,114120.0,114110.0,0.17603777]
[1754123233786,5.85499211,114120.0,114110.0,0.17603777]
[1754123236875,5.31467583,114120.0,114110.0,0.17603777]
[1754123237078,5.86870895,114120.0,114110.0,0.17603777]
[1754123239164,5.31467583,114120.0,114110.0,0.17603777]
[1754123239413,5.86870895,114120.0,114110.0,0.17603777]
[1754123240369,6.23615797,114120.0,114110.0,0.17603777]
[1754123240656,6.23615797,114120.0,114110.0,0.14104777]
[1754123241102,6.23615797,114120.0,114110.0,0.17270777]
[1754123241549,1.64055797,114120.0,114110.0,0.16970777]
[1754123241808,1.64055797,114120.0,114110.0,0.16770777]
[1754123242029,6.28936797,114120.0,114110.0,0.13804777]
[1754123242251,6.28887797,114120.0,114110.0,0.13804777]
[1754123242474,6.28887797,114120.0,114110.0,0.16970777]
[1754123243171,6.28887797,114120.0,114110.0,0.17195777]
[1754123243619,6.28887797,114120.0,114110.0,0.17395777]
[1754123245891,5.73484485,114120.0,114110.0,0.17395777]
[1754123246108,6.28887797,114120.0,114110.0,0.17395777]
[1754123251176,5.73484485,114120.0,114110.0,0.17395777]
[1754123251320,6.27516113,114120.0,114110.0,0.17395777]
[1754123254023,1.62684113,114120.0,114110.0,0.17395777]
[1754123254184,6.28887848,114120.0,114110.0,0.17395777]
[1754123256731,6.37307837,114120.0,114110.0,0.17395777]
[1754123257217,6.28887848,114120.0,114110.0,0.17395777]
[1754123257878,6.27516113,114120.0,114110.0,0.17395777]
[1754123260798,6.28887849,114120.0,114110.0,0.17395777]
[1754123263310,5.73484537,114120.0,114110.0,0.17395777]
[1754123263533,6.28887849,114120.0,114110.0,0.17395777]
[1754123263962,6.27516113,114120.0,114110.0,0.17395777]
[1754123266816,5.72112801,114120.0,114110.0,0.17606777]
[1754123267434,6.27516113,114120.0,114110.0,0.17606777]
[1754123267644,5.72112801,114120.0,114110.0,0.17606777]
[1754123267848,5.5458739,114120.0,114110.0,0.17606777]
[1754123268074,5.13942188,114120.0,114110.0,0.45308433]
[1754123268294,4.79942188,114120.0,114110.0,0.45308433]
[1754123268521,5.07643844,114120.0,114110.0,0.17606777]
[1754123270328,5.41643844,114120.0,114110.0,0.17606777]
[1754123273269,5.22798256,114120.0,114110.0,0.17606777]
[1754123273717,4.950966,114120.0,114110.0,0.17606777]
[1754123273949,5.50499912,114120.0,114110.0,0.17606777]
[1754123274820,4.950966,114120.0,114110.0,0.17606777]
[1754123275044,5.22798256,114120.0,114110.0,0.17606777]
[1754123275477,5.68025323,114120.0,114110.0,0.17646777]
[1754123276387,5.50499912,114120.0,114110.0,0.17646777]
[1754123277042,5.53182652,114120.0,114110.0,0.17646777]
[1754123277540,5.70708063,114120.0,114110.0,0.17646777]
[1754123277748,5.69336363,114120.0,114110.0,0.17646777]
[1754123278592,5.13933051,114120.0,114110.0,0.17646777]
[1754123278828,5.51810952,114120.0,114110.0,0.17646777]
[1754123279220,4.9640764,114120.0,114110.0,0.17646777]
[1754123279448,5.24109296,114120.0,114110.0,0.17646777]
[1754123280582,5.25480963,114120.0,114110.0,0.17646777]
[1754123282262,0.38054407,114120.0,114110.0,0.45348433]
[1754123282504,4.97779307,114120.0,114110.0,0.45348433]
[1754123283605,5.43006374,114120.0,114110.0,0.17646777]
[1754123284493,4.97779307,114120.0,114110.0,0.17646777]
[1754123284726,5.25480963,114120.0,114110.0,0.17646777]
[1754123284960,4.97779307,114120.0,114110.0,0.17646777]
[1754123285224,5.25480963,114120.0,114110.0,0.17646777]
[1754123287883,4.97779307,114120.0,114110.0,0.17646777]
[1754123288589,5.25480963,114120.0,114110.0,0.17435777]
[1754123289015,5.25480963,114120.0,114110.0,0.17637777]
[1754123289466,5.15304718,114120.0,114110.0,0.17435777]
[1754123289692,5.43006374,114120.0,114110.0,0.17435777]
[1754123290188,5.15304718,114120.0,114110.0,0.17435777]
[1754123290419,5.43006374,114120.0,114110.0,0.17435777]
[1754123292055,5.43006374,114120.0,114110.0,0.17110777]
[1754123293180,5.43006374,114120.0,114110.0,0.13944777]
[1754123293603,5.43006374,114120.0,114110.0,0.17456777]
[1754123296391,5.7070803,114120.0,114110.0,0.14004777]
[1754123296636,5.7096903,114120.0,114110.0,0.14004777]
[1754123296984,5.7070803,114120.0,114110.0,0.14004777]
[1754123297848,5.7070803,114120.0,114110.0,0.13804777]
[1754123298066,5.7070803,114120.0,114110.0,0.17316777]
[1754123298359,5.7070803,114120.0,114110.0,0.17416777]
[1754123298566,5.7070803,114120.0,114110.0,0.17216777]
[1754123298776,5.7070803,114120.0,114110.0,0.17316777]
[1754123300927,5.15304718,114120.0,114110.0,0.17316777]
[1754123301133,5.7070803,114120.0,114110.0,0.17316777]
[1754123302071,5.9070803,114120.0,114110.0,0.17316777]
[1754123302954,5.63006374,114120.0,114110.0,0.17316777]
[1754123303057,5.63006374,114120.0,114110.0,0.17634777]
[1754123306514,1.03281474,114120.0,114110.0,0.17634777]
[1754123306744,5.61634707,114120.0,114110.0,0.17634777]
[1754123309604,5.63006402,114120.0,114110.0,0.17634777]
[1754123323300,5.35304746,114120.0,114110.0,0.17634777]
[1754123323465,5.63006402,114120.0,114110.0,0.17634777]
[1754123324953,5.63006402,114120.0,114110.0,0.04038777]
[1754123325166,5.63006402,114120.0,114110.0,0.17558777]
[1754123325761,5.35304746,114120.0,114110.0,0.17558777]
[1754123325965,5.63006402,114120.0,114110.0,0.17558777]
[1754123326175,5.61634707,114120.0,114110.0,0.17558777]
[1754123327772,5.61611486,114120.0,114110.0,0.17558777]
[1754123327987,5.3390983,114120.0,114110.0,0.17558777]
[1754123328221,5.3390983,114120.0,114110.0,0.17763777]
[1754123328620,5.16384419,114120.0,114110.0,0.45465433]
[1754123329027,5.44086075,114120.0,114110.0,0.17763777]
[1754123329242,5.16384419,114120.0,114110.0,0.17763777]
[1754123330425,5.17756091,114120.0,114110.0,0.17763777]
[1754123331066,0.58031191,114120.0,114110.0,0.17763777]
[1754123331280,5.17756091,114120.0,114110.0,0.17763777]
[1754123331941,5.45457747,114120.0,114110.0,0.17763777]
[1754123332862,5.62983158,114120.0,114110.0,0.17763777]
[1754123333338,5.61611486,114120.0,114110.0,0.17763777]
[1754123336155,5.62983162,114120.0,114110.0,0.17763777]
[1754123336557,5.65618562,114120.0,114110.0,0.17763777]
[1754123336742,5.48093151,114120.0,114110.0,0.17763777]
[1754123337611,5.53365151,114120.0,114110.0,0.17763777]
[1754123337820,5.48093151,114120.0,114110.0,0.17763777]
[1754123338662,5.65618562,114120.0,114110.0,0.17763777]
[1754123339450,5.37916906,114120.0,114110.0,0.17763777]
[1754123339652,5.65618562,114120.0,114110.0,0.17763777]
[1754123339965,5.48093151,114120.0,114110.0,0.17763777]
[1754123341468,5.65618562,114120.0,114110.0,0.17763777]
[1754123342853,5.97321923,114120.0,114110.0,0.17763777]
[1754123343072,5.39283211,114120.0,114110.0,0.17763777]
[1754123343289,5.66984867,114120.0,114110.0,0.17558777]
[1754123343493,5.66984867,114120.0,114110.0,0.17240777]
[1754123343706,5.37916906,114120.0,114110.0,0.17240777]
[1754123343920,5.37916906,114120.0,114110.0,0.13752777]
[1754123343921,6.07032207,114120.0,114110.0,0.13752777]
[1754123344342,1.47307307,114120.0,114110.0,0.13752777]
[1754123344730,6.07032207,114120.0,114110.0,0.13752777]
[1754123346257,6.05660531,114120.0,114110.0,0.13752777]
[1754123346434,6.05640531,114120.0,114110.0,0.13752777]
[1754123346689,6.00368531,114120.0,114110.0,0.13752777]
[1754123347523,6.02133433,114120.0,114110.0,0.00208777]
[1754123347731,6.02133433,114120.0,114110.0,0.13748777]
[1754123348610,6.05991535,114120.0,114110.0,0.13748777]
[1754123349121,6.03485144,114120.0,114110.0,0.13748777]
[1754123349725,6.03485144,114120.0,114110.0,0.13744777]
[1754123350596,5.48081832,114120.0,114110.0,0.13744777]
[1754123350811,6.03485144,114120.0,114110.0,0.13744777]
[1754123351581,6.03485144,114120.0,114110.0,0.00208777]
[1754123351793,6.03485144,114120.0,114110.0,0.13740777]
[1754123352177,6.03485144,114120.0,114110.0,0.17015777]
[1754123353004,6.03485144,114120.0,114110.0,0.13740777]
[1754123353203,6.02113433,114120.0,114110.0,0.13740777]
[1754123353705,5.46710121,114120.0,114110.0,0.13740777]
[1754123353829,6.02113433,114120.0,114110.0,0.13740777]
[1754123354452,6.02113433,114120.0,114110.0,0.17015777]
[1754123355505,1.42388533,114120.0,114110.0,0.17015777]
[1754123355718,5.46710121,114120.0,114110.0,0.17015777]
[1754123355983,6.02113433,114120.0,114110.0,0.17015777]
[1754123356399,6.07385433,114120.0,114110.0,0.17015777]
[1754123357492,6.08757133,114120.0,114110.0,0.17313777]
[1754123359295,5.53353821,114120.0,114110.0,0.17313777]
[1754123359513,6.08757133,114120.0,114110.0,0.17509777]
[1754123360248,6.08757133,114120.0,114110.0,0.17313777]
[1754123361313,6.08757133,114120.0,114110.0,0.17509777]
[1754123364533,6.08757133,114120.0,114110.0,0.03781777]
[1754123364668,6.08757133,114120.0,114110.0,0.17293777]
[1754123368485,6.09607133,114120.0,114110.0,0.17293777]
[1754123369131,6.1257124,114120.0,114110.0,0.17293777]
[1754123369351,6.09607133,114120.0,114110.0,0.17293777]
[1754123370270,5.81905477,114120.0,114110.0,0.17293777]
[1754123371264,5.47928698,114120.0,114110.0,0.17293777]
[1754123372928,0.88203798,114120.0,114110.0,0.17293777]
[1754123373121,5.47928698,114120.0,114110.0,0.17293777]
[1754123375752,5.46556998,114120.0,114110.0,0.17293777]
[1754123376359,5.46556998,114120.0,114110.0,0.03781777]
[1754123376586,5.46556998,114120.0,114110.0,0.16975777]
[1754123376935,5.46556998,114120.0,114110.0,0.17284777]
[1754123377858,5.74258654,114120.0,114110.0,0.17284777]
[1754123378073,5.46556998,114120.0,114110.0,0.17284777]
[1754123378501,5.47928735,114120.0,114110.0,0.17284777]
[1754123381399,5.81928735,114120.0,114110.0,0.17284777]
[1754123382477,6.09630391,114120.0,114110.0,0.17284777]
[1754123383916,5.54227079,114120.0,114110.0,0.17284777]
[1754123384103,6.09630391,114120.0,114110.0,0.17284777]
[1754123384301,5.54227079,114120.0,114110.0,0.17284777]
[1754123384524,6.09630391,114120.0,114110.0,0.17284777]
[1754123385821,6.1411671,114120.0,114110.0,0.17284777]
[1754123386642,6.09630391,114120.0,114110.0,0.17284777]
[1754123386860,5.54227079,114120.0,114110.0,0.17489777]
[1754123387082,5.81928735,114120.0,114110.0,0.17489777]
[1754123387736,5.80556998,114120.0,114110.0,0.17489777]
[1754123389541,5.79706998,114120.0,114110.0,0.17489777]
[1754123389770,6.07408654,114120.0,114110.0,0.17489777]
[1754123390459,6.07408654,114120.0,114110.0,0.16952777]
[1754123390703,6.08780384,114120.0,114110.0,0.16952777]
[1754123391811,5.53377072,114120.0,114110.0,0.17261777]
[1754123392031,6.08780384,114120.0,114110.0,0.17261777]
[1754123392899,6.08780384,114120.0,114110.0,0.17257777]
[1754123394779,1.49905484,114120.0,114110.0,0.17257777]
[1754123395002,1.54828548,114120.0,114110.0,0.17257777]
[1754123395226,6.09630384,114120.0,114110.0,0.17257777]
[1754123396971,6.09630384,114120.0,114110.0,0.17277777]
[1754123397270,6.08780384,114120.0,114110.0,0.17277777]
[1754123398112,6.10676052,114120.0,114110.0,0.13716777]
[1754123398347,6.10676052,114120.0,114110.0,0.00208777]
[1754123398568,6.10676052,114120.0,114110.0,0.13712777]
[1754123399480,6.19096041,114120.0,114110.0,0.13712777]
[1754123399991,6.10676052,114120.0,114110.0,0.13712777]
[1754123400210,5.82974396,114120.0,114110.0,0.17178777]
[1754123400638,6.10676052,114120.0,114110.0,0.17178777]
[1754123401278,5.5527274,114120.0,114110.0,0.17178777]
[1754123401495,6.10676052,114120.0,114110.0,0.17174777]
[1754123402234,6.10676052,114120.0,114110.0,0.16296352]
[1754123402664,6.10676052,114120.0,114110.0,0.15417927]
[1754123403092,6.10676052,114120.0,114110.0,0.14539502]
[1754123403518,6.10887052,114120.0,114110.0,0.13661077]
[1754123403725,6.13981052,114120.0,114110.0,0.135]
[1754123403937,6.13981052,114120.0,114110.0,0.12621555]
[1754123404091,6.18651582,114120.0,114110.0,0.12621555]
[1754123404510,6.1223615,114120.0,114110.0,0.12621555]
[1754123404788,6.1308615,114120.0,114110.0,0.12621555]
[1754123405009,6.0999215,114120.0,114110.0,0.12824555]
[1754123405224,6.1308615,114120.0,114110.0,0.1174311]
[1754123405441,6.1321915,114120.0,114110.0,0.1174311]
[1754123405661,6.1321915,114120.0,114110.0,0.10864665]
[1754123405868,6.1308615,114120.0,114110.0,0.10864665]
[1754123406190,6.21506139,114120.0,114110.0,0.0998622]
[1754123406434,6.21506139,114120.0,114110.0,0.09107775]
[1754123406645,6.21505624,114120.0,114110.0,0.09107775]
[1754123406844,6.23250526,114120.0,114110.0,0.0822933]
[1754123407279,6.23250526,114120.0,114110.0,0.07350885]
[1754123407488,6.23350526,114120.0,114110.0,0.07350885]
[1754123407701,6.23350526,114120.0,114110.0,0.0647244]
[1754123407918,0.93543849,114110.0,114100.0,0.0315]
[1754123408135,6.34241394,114110.0,114100.0,0.16638784]
[1754123408347,6.42661383,114110.0,114100.0,0.16638784]
[1754123408559,6.36877394,114110.0,114100.0,0.16954784]
[1754123409019,6.09175738,114110.0,114100.0,0.16954784]
[1754123409232,6.36877394,114110.0,114100.0,0.16954784]
[1754123409569,6.09175738,114110.0,114100.0,0.16954784]
[1754123409679,6.36877394,114110.0,114100.0,0.16954784]
[1754123409902,6.36877394,114110.0,114100.0,0.17157784]
[1754123410340,6.36877394,114110.0,114100.0,0.03673784]
[1754123410568,6.36877394,114110.0,114100.0,0.17157784]
[1754123411050,6.38249245,114110.0,114100.0,0.17157784]
[1754123411266,1.78524345,114110.0,114100.0,0.17157784]
[1754123411484,6.38249245,114110.0,114100.0,0.17157784]
[1754123412994,6.39419676,114110.0,114100.0,0.17157784]
[1754123417347,6.39419676,114110.0,114100.0,0.03673784]
[1754123417576,6.39419676,114110.0,114100.0,0.16946784]
[1754123418449,6.39419676,114110.0,114100.0,0.16630784]
[1754123418659,6.42513676,114110.0,114100.0,0.13480784]
[1754123426014,6.1481202,114110.0,114100.0,0.13480784]
[1754123426228,6.42513676,114110.0,114100.0,0.16803784]
[1754123426436,6.39419676,114110.0,114100.0,0.16803784]
[1754123426656,6.39419676,114110.0,114100.0,0.17121784]
[1754123426874,6.39419676,114110.0,114100.0,0.17317784]
[1754123427087,1.79694776,114110.0,114100.0,0.17317784]
[1754123427513,6.39419676,114110.0,114100.0,0.17317784]
[1754123430929,6.1171802,114110.0,114100.0,0.17317784]
[1754123431131,6.39419676,114110.0,114100.0,0.17317784]
[1754123431992,6.1171802,114110.0,114100.0,0.17317784]
[1754123432223,6.08591687,114110.0,114100.0,0.4501944]
[1754123432449,6.08591687,114110.0,114100.0,0.17317784]
[1754123432945,6.36293343,114110.0,114100.0,0.17317784]
[1754123436349,6.38188708,114110.0,114100.0,0.17317784]
[1754123437020,6.38386708,114110.0,114100.0,0.17317784]
[1754123437893,6.38386708,114110.0,114100.0,0.17121784]
[1754123440446,6.10685052,114110.0,114100.0,0.17121784]
[1754123440653,6.38386708,114110.0,114100.0,0.16803784]
[1754123440865,6.41454708,114110.0,114100.0,0.13480784]
[1754123441078,6.41454708,114110.0,114100.0,0.16803784]
[1754123441288,6.12454322,114110.0,114100.0,0.16803784]
[1754123441494,6.40155978,114110.0,114100.0,0.16803784]
[1754123442648,6.38386708,114110.0,114100.0,0.16803784]
[1754123442816,6.38386708,114110.0,114100.0,0.17121784]
[1754123443495,6.41454708,114110.0,114100.0,0.13480784]
[1754123444878,6.61454708,114110.0,114100.0,0.13480784]
[1754123445466,6.90901266,114110.0,114100.0,0.13476784]
[1754123445677,6.43917943,114110.0,114100.0,0.13476784]
[1754123446294,6.70247748,114110.0,114100.0,0.13476784]
[1754123446480,6.42546092,114110.0,114100.0,0.13476784]
[1754123446705,6.70247748,114110.0,114100.0,0.13476784]
[1754123447045,6.97949404,114110.0,114100.0,0.13476784]
[1754123447406,6.70393748,114110.0,114100.0,0.13476784]
[1754123448150,6.98095404,114110.0,114100.0,0.13476784]
[1754123448367,6.42692092,114110.0,114100.0,0.13476784]
[1754123448584,6.70393748,114110.0,114100.0,0.13476784]
[1754123449025,6.7176569,114110.0,114100.0,0.13476784]
[1754123449263,6.7186569,114110.0,114100.0,0.12598262]
[1754123449646,5.16525383,114100.0,114090.0,0.16863]
[1754123449861,5.52845028,114100.0,114090.0,0.16875576]
[1754123450063,5.52845028,114100.0,114090.0,0.17193576]
[1754123450272,5.55481028,114100.0,114090.0,0.17193576]
[1754123451387,0.95756128,114100.0,114090.0,0.17193576]
[1754123451616,5.55481028,114100.0,114090.0,0.17193576]
[1754123452280,5.91602673,114100.0,114090.0,0.17193576]
[1754123452496,5.63901017,114100.0,114090.0,0.17193576]
[1754123452718,5.86250684,114100.0,114090.0,0.13552576]
[1754123452930,5.8989005,114100.0,114090.0,0.13540576]